fUSD/lending_fUSD_20240701
["ID","MTS","AMOUNT","RATE_DAILY","PERIOD"]
[330814586,1719831033048,-24319.57894474,0.00013999,2]
[330814587,1719831033057,-70980.77127327,0.00013999,2]
[330814588,1719831033069,-223744.98529063,0.00013999,2]
[330814589,1719831033080,-351.56071379,0.00013999,2]
[330814591,1719831033092,-13815.75879739,0.00013999,2]
[330814595,1719831033121,-7382.376725,0.00013999,2]
[330814597,1719831033135,-6127.228,0.00013999,2]
[330814600,1719831033148,-5695.5,0.00013999,2]
[330814602,1719831033160,-544.18604587,0.00013999,2]
[330814604,1719831033172,-423.56713528,0.00013999,2]
[330814606,1719831033183,-4281.9081366,0.00013999,2]
[330814608,1719831033194,-3147.516,0.00013999,2]
[330814626,1719831038649,-9599.71668443,0.00013999,2]
[330814632,1719831041109,-225.79305904,0.00013998,2]
[330814633,1719831041119,-4776.30399493,0.00013999,2]
[330814636,1719831045081,-41822.55666589,0.00013999,2]
[330814642,1719831045423,-19941.22519385,0.00013999,2]
[330814646,1719831046742,-15734.435,0.00013999,2]
[330814647,1719831046758,-2662.22319495,0.00013999,2]
[330814648,1719831046770,-986.69051174,0.00013999,2]
[330814649,1719831046782,-287.168844,0.00013999,2]
[330814650,1719831046988,-566.4803707,0.00013999,2]
[330814652,1719831780066,155.0,0.00011199,2]
[330814653,1719831798297,155.0,0.00011199,2]
[330814654,1719831809733,155.43468386,0.00011199,2]
[330814655,1719831810057,155.0,0.00011199,2]
[330814656,1719831886958,297.94445923,0.00011199,2]
[330814744,1719832231739,-438.75,0.0001154,2]
[330814745,1719832231748,-329.0,0.00012301,2]
[330814746,1719832231758,-155.0,0.00012302,2]
[330814747,1719832231768,-155.0,0.00012302,2]
[330814748,1719832231779,-161.28077976,0.00012314,2]
[330814749,1719832231788,-292.71591146,0.00012314,2]
[330814750,1719832231797,-155.0,0.00013128,2]
[330814751,1719832231807,-95.48042572,0.00013286,2]
[330814752,1719832231819,-21468.50957428,0.00013286,2]
[330814753,1719832231831,-250.0,0.00013308,2]
[330814754,1719832231840,-1000.0,0.00013374,2]
[330814755,1719832231849,-182.06,0.00013376,2]
[330814756,1719832231859,-277.34,0.00013699,2]
[330814757,1719832231868,-11545.6454,0.00013799,2]
[330814758,1719832231878,-422.2646,0.00013799,2]
[330814759,1719832231888,-1878.7088,0.00013799,2]
[330814760,1719832231897,-2020.03059304,0.00013799,2]
[330814761,1719832231907,-4653.27218655,0.00013799,2]
[330814762,1719832231916,-155.0,0.00013802,2]
[330814763,1719832231926,-438.75,0.00013804,2]
[330814764,1719832231935,-1035.78910393,0.00013849,2]
[330814765,1719832231946,-77782.62974224,0.00013899,2]
[330814766,1719832231958,-484.55762474,0.00013899,2]
[330814767,1719832231982,-6324.59079939,0.00013899,2]
[330814771,1719832237800,-613.605,0.00013899,2]
[330814772,1719832237813,-1003.4713401,0.00013899,2]
[330814773,1719832237951,-12240.36627117,0.00013899,2]
[330814791,1719832239806,-2665.14883522,0.00013899,2]
[330814793,1719832240018,-1989.9436,0.00013899,2]
[330814794,1719832240241,-892.19844599,0.00013899,2]
[330814795,1719832240253,-14918.31365012,0.00013899,2]
[330814796,1719832240265,-17565.94239103,0.00013899,2]
[330814797,1719832240274,-24533.7666,0.00013899,2]
[330814798,1719832240284,-1000.0,0.00013899,2]
[330814799,1719832240293,-2020.03059305,0.00013899,2]
[330814800,1719832240303,-167.12050594,0.000139,2]
[330814801,1719832240313,-780.00937388,0.000139,2]
[330814802,1719832240323,-7500.0,0.000139,2]
[330814803,1719832240332,-369.60450936,0.000139,2]
[330814804,1719832240342,-115175.79058783,0.00013999,2]
[330814805,1719832240351,-38338.37086488,0.00013999,2]
[330814816,1719832240603,-1611.00544294,0.00013999,2]
[330814821,1719832243390,-802.22733,0.00013999,2]
[330814822,1719832243402,-525.56574814,0.00013999,2]
[330814823,1719832243413,-4186.0056609,0.00013999,2]
[330814824,1719832243424,-2135.2774717,0.00013999,2]
[330814825,1719832243436,-19941.22519385,0.00013999,2]
[330814826,1719832243476,-141.82644812,0.00013999,2]
[330814827,1719832243741,-657.78211118,0.00013999,2]
[330814829,1719832243753,-4363.77126417,0.00013999,2]
[330814832,1719832243766,-475.67259041,0.00013999,2]
[330814834,1719832243776,-3585.89098126,0.00013999,2]
[330814835,1719832243790,-285.43780332,0.00013999,2]
[330814866,1719832245915,-274.63178298,0.000139,2]
[330814867,1719832245932,-4805.27343202,0.000139,2]
[330814868,1719832246165,-2420.094785,0.000139,2]
[330814869,1719832246179,-1176.1894485,0.00013999,2]
[330814887,1719832343304,2397.7067,0.00011199,2]
[330814888,1719832343329,13029.52232033,0.00011199,2]
[330814889,1719832355255,24151.71673457,0.00011199,2]
[330814893,1719832426888,-2374.07923418,0.00013472,2]
[330814894,1719832426909,-730.59789517,0.00013472,2]
[330814895,1719832426930,-297.40823142,0.00013472,2]
[330814896,1719832426950,-430.47767915,0.00013516,2]
[330814897,1719832426970,-209.99775219,0.00013516,2]
[330814898,1719832426990,-328.50066625,0.00013516,2]
[330814899,1719832427010,-346.52954461,0.00013574,2]
[330814900,1719832427029,-155.16125556,0.00013574,2]
[330814901,1719832427052,-27627.24774147,0.00013574,2]
[330814903,1719832667303,165.03,0.00010551,2]
[330814905,1719832844233,456.17,0.00011005,2]
[330814906,1719832870832,155.0,0.00011199,2]
[330814907,1719832890776,365.55653445,0.00011199,2]
[330814908,1719832895646,163.73601725,0.00011199,2]
[330814909,1719832929406,155.24947363,0.00011199,2]
[330814910,1719832941108,482.75596204,0.00011199,2]
[330814911,1719832973470,-169.1,0.00012884,2]
[330814912,1719832973506,-183.24,0.00013009,2]
[330814913,1719832973539,-1000.0,0.00013036,2]
[330814914,1719832973570,-250.0,0.00013079,2]
[330814915,1719832973601,-450.07456747,0.00013128,2]
[330814916,1719832973633,-456.17,0.00013269,2]
[330814917,1719832973767,-2364.83086506,0.0001342,2]
[330814918,1719833110974,-1537.0,0.0001342,2]
[330814919,1719833167474,-1455.72875265,0.00012302,2]
[330814920,1719833167502,-250.0,0.00013283,2]
[330814921,1719833167529,-756.19913494,0.0001342,2]
[330814922,1719833167554,-590.80013363,0.000135,2]
[330814923,1719833167579,-426.27197878,0.000135,2]
[330814940,1719833396993,165.79,0.00010641,2]
[330814941,1719833408717,-300.0,0.000135,4]
[330814942,1719833408746,-700.0,0.000136,4]
[330814943,1719833408771,-1100.0,0.000137,5]
[330814944,1719833408794,-1896.0,0.00013799,2]
[330814958,1719833432128,-482.87677638,0.00013799,2]
[330814959,1719833432140,-1766.90212362,0.00013799,2]
[330814960,1719833432150,-1500.0,0.000138,5]
[330814961,1719833432159,-167.5,0.00013814,2]
[330814962,1719833432171,-300.0,0.00013885,2]
[330814963,1719833432181,-500.0,0.00013886,2]
[330814964,1719833432190,-500.0,0.00013887,2]
[330814965,1719833432199,-500.0,0.00013887,2]
[330814966,1719833432210,-200.0,0.00013887,2]
[330814967,1719833432220,-299.99,0.00013887,2]
[330814968,1719833432229,-220.09,0.0001389,3]
[330814969,1719833432239,-5104.7324,0.00013899,2]
[330814970,1719833432248,-3479.3526,0.00013899,2]
[330814971,1719833432257,-327.18357986,0.00013899,2]
[330814972,1719833432267,-191.48076356,0.000139,2]
[330814973,1719833432276,-166.66712367,0.000139,2]
[330814974,1719833432286,-1057.07148527,0.000139,2]
[330814975,1719833432296,-4351.8927,0.000139,2]
[330814976,1719833432306,-1900.0,0.000139,5]
[330814977,1719833432315,-246.40300624,0.000139,2]
[330814978,1719833432325,-1198.81948762,0.000139,2]
[330814979,1719833432334,-1040.9621191,0.00013989,2]
[330814980,1719833432343,-842.8803651,0.00013989,2]
[330814981,1719833432353,-2010.3746257,0.00013989,2]
[330814982,1719833432364,-5018.2631896,0.00013989,2]
[330814983,1719833432373,-994.3027621,0.0001399,2]
[330814984,1719833432383,-947.6434052,0.0001399,2]
[330814985,1719833432393,-805.099686,0.0001399,2]
[330814986,1719833432403,-767.3190069,0.0001399,2]
[330814987,1719833432412,-1923.7032285,0.0001399,2]
[330814988,1719833432422,-1837.0318314,0.0001399,2]
[330814989,1719833432432,-4769.5922889,0.0001399,2]
[330814990,1719833432442,-192854.38724982,0.00013999,2]
[330814991,1719833432454,-638.68830435,0.00013999,2]
[330814992,1719833432466,-707.07425571,0.00013999,2]
[330814993,1719833432478,-614.51,0.00013999,2]
[330814994,1719833432490,-553.85044682,0.00013999,2]
[330814995,1719833432501,-710.59577829,0.00013999,2]
[330814996,1719833432513,-7382.376725,0.00013999,2]
[330814997,1719833432545,-45487.19687863,0.00013999,2]
[330814998,1719833432557,-2407.76999996,0.00013999,2]
[330814999,1719833432569,-12971.06305336,0.00013999,2]
[330815005,1719833438239,-251.29173478,0.00013899,2]
[330815006,1719833438253,-17427.28486522,0.00013899,2]
[330815007,1719833438265,-1000.0,0.000139,2]
[330815008,1719833438276,-202.10180189,0.00013989,2]
[330815009,1719833438286,-166734.64043753,0.00013999,2]
[330815016,1719833438621,-0.68419071,0.00013999,2]
[330815018,1719833438634,-3635.72989819,0.00013999,2]
[330815040,1719833440184,-727.40483639,0.00013999,2]
[330815042,1719833440986,-643.23488832,0.00013999,2]
[330815064,1719833443342,-7.11284957,0.00013999,2]
[330815065,1719833443354,-15736.30356472,0.00013999,2]
[330815102,1719833446226,-3699.13810077,0.00013999,2]
[330815145,1719834027891,12389.42226733,0.00011199,2]
[330815146,1719834146717,487.17,0.00010853,2]
[330815148,1719834204590,2617.88190555,0.00011199,2]
[330815149,1719834321009,155.0,0.00011199,2]
[330815150,1719834349703,155.0,0.00011199,2]
[330815151,1719834374041,2828.45274486,0.00011199,2]
[330815152,1719834413793,315.09255802,0.00011199,2]
[330815153,1719834513051,2374.1385064,0.00011199,2]
[330815173,1719834631886,-284.07449397,0.00012302,2]
[330815174,1719834631897,-155.0,0.00012314,2]
[330815175,1719834631907,-155.0,0.00012314,2]
[330815176,1719834631916,-2283.44095845,0.00012579,2]
[330815177,1719834631928,-976.69261047,0.00012579,2]
[330815178,1719834631941,-635.97483763,0.00012579,2]
[330815179,1719834631953,-386.97857912,0.00012579,2]
[330815180,1719834631969,-3805.55904642,0.00012579,2]
[330815181,1719834631981,-5183.35876581,0.00012579,2]
[330815182,1719834631993,-1489.75692948,0.00012579,2]
[330815183,1719834632004,-883.54995,0.00012579,2]
[330815186,1719834632273,-846.47,0.00012579,2]
[330815187,1719834632294,-350.2299999,0.00012579,2]
[330815188,1719834632332,-2006.22660522,0.00012579,2]
[330815189,1719834632344,-97.2717175,0.00012579,2]
[330815190,1719834632354,-797.07,0.00012682,2]
[330815191,1719834632364,-169.27,0.00012684,2]
[330815192,1719834632373,-250.0,0.00012689,2]
[330815193,1719834632383,-250.0,0.00012694,2]
[330815194,1719834632393,-1000.0,0.00012711,2]
[330815195,1719834632403,-476.45,0.00012724,2]
[330815196,1719834632413,-3430.48742685,0.00012732,2]
[330815197,1719834632428,-1870.32257315,0.00012732,2]
[330815198,1719834632438,-227.14,0.00012779,2]
[330815199,1719834632448,-300.0,0.00012802,2]
[330815200,1719834632458,-2057.76,0.00012803,2]
[330815201,1719834632468,-200.0,0.00012879,2]
[330815202,1719834632478,-150.0,0.0001295,2]
[330815203,1719834632488,-499.99,0.00012951,2]
[330815204,1719834632500,-3026.51,0.00012951,2]
[330815205,1719834632509,-3507.29117216,0.00012951,2]
[330815206,1719834637842,-771.07115909,0.00012951,2]
[330815207,1719834637854,-987.45743925,0.00012951,2]
[330815209,1719834637867,-758.11221771,0.00012951,2]
[330815210,1719834637901,-2347.48801179,0.00012951,2]
[330815211,1719834637912,-360.49,0.00012951,2]
[330815212,1719834637922,-487.17,0.00013117,2]
[330815213,1719834637932,-704.85198821,0.00013142,2]
[330815214,1719834637945,-463.69679999,0.00013142,2]
[330815215,1719834637958,-1002.767655,0.00013142,2]
[330815216,1719834637970,-1353.30605256,0.00013142,2]
[330815217,1719834637980,-2364.83,0.00013152,2]
[330815218,1719834637990,-155.14654103,0.00013472,2]
[330815219,1719834638000,-528.01671537,0.00013516,2]
[330815220,1719834638011,-159.72076583,0.00013543,2]
[330815221,1719834638020,-208.52980433,0.00013543,2]
[330815222,1719834638030,-193.50102493,0.00013574,2]
[330815223,1719834638040,-684.75373736,0.00013574,2]
[330815224,1719834638050,-1000.0,0.000136,2]
[330815225,1719834638060,-183.24,0.00013607,2]
[330815226,1719834638070,-211.75,0.00013699,2]
[330815227,1719834638080,-265.1,0.00013699,2]
[330815228,1719834638090,-1000.0,0.000137,2]
[330815229,1719834638100,-1000.0,0.000137,2]
[330815230,1719834638110,-296.78659241,0.00013736,2]
[330815231,1719834638120,-227.0716558,0.00013736,2]
[330815232,1719834638130,-352.60837984,0.00013736,2]
[330815234,1719834638140,-263.4402613,0.00013736,2]
[330815235,1719834638151,-498.83598708,0.00013736,2]
[330815236,1719834638161,-328.58563903,0.00013759,2]
[330815237,1719834638171,-258.7052,0.00013799,2]
[330815238,1719834638180,-385.20646348,0.00013846,2]
[330815239,1719834638191,-14929.43624541,0.0001386,2]
[330815240,1719834638201,-500.0,0.00013887,2]
[330815241,1719834638211,-366.20311967,0.00013889,2]
[330815242,1719834638222,-500.0,0.00013899,2]
[330815243,1719834638232,-3919.95201696,0.00013899,2]
[330815244,1719834638245,-7775.9653312,0.00013899,2]
[330815245,1719834638257,-3500.5685945,0.00013899,2]
[330815246,1719834638282,-371.59143874,0.00013899,2]
[330815249,1719834640095,-6691.93910129,0.00013899,2]
[330815250,1719834640109,-2931.98233989,0.00013899,2]
[330815251,1719834640122,-663.08274491,0.00013899,2]
[330815252,1719834640135,-933.38680925,0.00013899,2]
[330815253,1719834640313,-2837.74696614,0.00013899,2]
[330815254,1719834640326,-24146.55238719,0.00013899,2]
[330815255,1719834640339,-3034.23261669,0.00013899,2]
[330815256,1719834640351,-319.81405891,0.00013899,2]
[330815257,1719834640363,-5934.23099433,0.00013899,2]
[330815258,1719834640373,-13105.9439,0.00013899,2]
[330815259,1719834640383,-1856.8783,0.00013899,2]
[330815260,1719834640393,-500.7144,0.00013899,2]
[330815261,1719834640404,-153.18461084,0.000139,2]
[330815262,1719834640414,-166.48557118,0.000139,2]
[330815263,1719834640424,-968.98219484,0.000139,2]
[330815264,1719834640434,-164.26867082,0.000139,2]
[330815265,1719834640445,-416.88024936,0.00013939,2]
[330815266,1719834640455,-1014.71,0.00013973,3]
[330815267,1719834640464,-176.85,0.00013984,2]
[330815268,1719834640474,-440.8571495,0.00013989,2]
[330815269,1719834640485,-542.9233414,0.00013989,2]
[330815270,1719834640500,-3504.7116789,0.00013989,2]
[330815271,1719834640509,-1054.2797428,0.00013989,2]
[330815272,1719834640521,-290.22605958,0.00013989,2]
[330815273,1719834640532,-218.1413314,0.00013989,2]
[330815274,1719834640542,-402.8658194,0.0001399,2]
[330815275,1719834640552,-364.8744893,0.0001399,2]
[330815276,1719834640562,-496.6189431,0.0001399,2]
[330815277,1719834640573,-450.3145448,0.0001399,2]
[330815278,1719834640583,-3208.9376839,0.0001399,2]
[330815279,1719834640593,-2913.163689,0.0001399,2]
[330815280,1719834640603,-965.3056531,0.0001399,2]
[330815282,1719834640612,-876.3315634,0.0001399,2]
[330815284,1719834640623,-20533.48715626,0.00013999,2]
[330815289,1719834640862,-3207.735,0.00013999,2]
[330815290,1719834640875,-28381.34,0.00013999,2]
[330815291,1719834640888,-3045.14292529,0.00013999,2]
[330815297,1719834642970,-3205.67425018,0.00013999,2]
[330815298,1719834642982,-1668.02297108,0.00013999,2]
[330815299,1719834642994,-5579.18028061,0.00013999,2]
[330815300,1719834643026,-3219.5262,0.00013999,2]
[330815301,1719834643136,-3262.44251899,0.00013999,2]
[330815302,1719834643192,-80491.48775438,0.00013999,2]
[330815303,1719834643204,-7070.06089939,0.00013999,2]
[330815304,1719834643214,-1060.58875,0.00013999,2]
[330815305,1719834643223,-151.67432083,0.00013999,2]
[330815306,1719834643233,-1013.0,0.00014,2]
[330815307,1719834643243,-619362.43854297,0.00014,2]
[330815308,1719834643254,-1257.36346,0.00014,2]
[330815324,1719834646054,-260.65929209,0.00014,2]
[330815331,1719834646118,-462.43344098,0.00014,2]
[330815333,1719834646130,-1348.24207892,0.00014,2]
[330815335,1719834646142,-355.02807604,0.00014,2]
[330815340,1719834646176,-508.5,0.00014,2]
[330815347,1719834646237,-11937.36167102,0.00014,2]
[330815349,1719834646302,-2800.21661438,0.00014,2]
[330815350,1719834646315,-12115.36860853,0.00014,2]
[330815351,1719834646327,-3863.34211724,0.00014,2]
[330815352,1719834646368,-2660.93003738,0.00014,2]
[330815353,1719834646435,-1246.58900404,0.00014,2]
[330815354,1719834646448,-457.55470568,0.00014,2]
[330815355,1719834646461,-8068.46577598,0.00014,2]
[330815356,1719834664907,525.74789375,0.00011201,2]
[330815357,1719834870188,150.5,0.0001399,30]
[330815358,1719834870670,150.5,0.0001398,30]
[330815359,1719834871125,150.5,0.0001397,30]
[330815360,1719834871591,150.5,0.00014989,30]
[330815361,1719834872056,150.5,0.00014979,30]
[330815362,1719834872509,150.5,0.00014969,30]
[330815363,1719834872694,150.5,0.0001399,30]
[330815364,1719834873191,150.5,0.0001398,30]
[330815365,1719834873710,150.5,0.0001397,30]
[330815366,1719834874206,150.5,0.00014989,30]
[330815367,1719834876526,150.5,0.00014979,30]
[330815368,1719834877016,150.5,0.00014969,30]
[330815369,1719834885938,10785.56905609,0.00011199,2]
[330815372,1719834939100,2374.66560642,0.00011199,2]
[330815373,1719834960566,3023.35359891,0.00011199,2]
[330815374,1719834989935,151.54,0.0001399,30]
[330815376,1719834990078,150.5,0.0001399,30]
[330815377,1719834990120,150.5,0.0001399,30]
[330815378,1719834990473,739.0,0.0001399,30]
[330815379,1719834990534,284.6,0.0001398,30]
[330815380,1719834991044,739.0,0.0001398,30]
[330815381,1719834991536,739.0,0.0001397,30]
[330815382,1719834991997,739.0,0.00014989,30]
[330815383,1719834992081,260.0,0.0001399,30]
[330815384,1719834992460,739.0,0.00014979,30]
[330815385,1719834992962,739.0,0.00014969,30]
[330815386,1719835006535,3107.31885347,0.00011199,2]
[330815387,1719835081792,193.50102493,0.00011199,2]
[330815388,1719835083741,625.64470959,0.00011199,2]
[330815389,1719835089258,292.57692533,0.00011199,2]
[330815390,1719835104646,2165.86016234,0.00011199,2]
[330815391,1719835106886,2376.06489013,0.00011199,2]
[330815392,1719835124406,366.97466276,0.00011199,2]
[330815393,1719835124992,193.55762474,0.00011199,2]
[330815394,1719835157508,155.0,0.00011199,2]
[330815395,1719835179960,155.0,0.00011199,2]
[330815396,1719835199186,1102.81224386,0.00011199,2]
[330815397,1719835232882,489.67,0.00011107,2]
[330815398,1719835261107,1986.89170112,0.00011199,2]
[330815399,1719835296149,531.23979859,0.00011199,2]
[330815400,1719835351197,296.0,0.0001399,30]
[330815401,1719835351744,296.0,0.0001398,30]
[330815402,1719835352160,296.0,0.0001397,30]
[330815403,1719835352617,296.0,0.00014989,30]
[330815404,1719835353103,296.0,0.00014979,30]
[330815405,1719835353673,296.0,0.00014969,30]
[330815407,1719835429927,1443.9067749,0.00011199,2]
[330815408,1719835470248,626.3360738,0.00011199,2]
[330815409,1719835533590,450.07456747,0.00011199,2]
[330815410,1719835594897,150.5,0.0001399,30]
[330815411,1719835595366,180.97,0.0001398,30]
[330815417,1719835683542,190.46826672,0.00011199,2]
[330815418,1719835711201,150.5,0.0001399,30]
[330815419,1719835711727,150.5,0.0001398,30]
[330815420,1719835712194,150.5,0.0001397,30]
[330815421,1719835712729,150.5,0.0001498,30]
[330815422,1719835713204,150.5,0.0001497,30]
[330815423,1719835713740,150.5,0.0001496,30]
[330815432,1719835740627,1203.25564575,0.00011199,2]
[330815453,1719835832675,-216.26835515,0.00012302,2]
[330815454,1719835832686,-250.0,0.00012802,2]
[330815455,1719835832695,-250.0,0.00012858,2]
[330815456,1719835832705,-179.23,0.00012868,2]
[330815458,1719835832714,-2649.7375942,0.00012903,2]
[330815459,1719835832788,-18813.0,0.00012903,2]
[330815460,1719835832800,-328.885,0.00012903,2]
[330815461,1719835832851,-2108.3774058,0.00012903,2]
[330815462,1719835832861,-150.0,0.00013269,2]
[330815463,1719835832879,-464.30458077,0.0001327,2]
[330815468,1719835838053,-535.69541923,0.0001327,2]
[330815469,1719835838063,-169.46,0.00013288,2]
[330815472,1719835838080,-108.06102563,0.00013371,2]
[330815473,1719835838093,-381.60897437,0.00013371,2]
[330815474,1719835838104,-311.18574659,0.00013421,2]
[330815475,1719835838117,-2188.81425341,0.00013421,2]
[330815476,1719835838127,-605.6,0.00013421,2]
[330815477,1719835838140,-499.99,0.00013543,2]
[330815478,1719835838151,-626.89619143,0.00013574,2]
[330815479,1719835838161,-265.09,0.00013699,2]
[330815480,1719835838171,-416.88024936,0.00013743,2]
[330815481,1719835838181,-385.20646348,0.00013747,2]
[330815482,1719835838191,-2233.6584866,0.00013754,2]
[330815483,1719835838202,-17351.72761448,0.0001379,2]
[330815484,1719835838212,-4731.83719156,0.00013799,2]
[330815485,1719835838222,-2500.0,0.00013824,2]
[330815486,1719835838232,-1383.82396,0.0001386,2]
[330815487,1719835838242,-190.85369923,0.00013889,2]
[330815488,1719835838252,-1000.0,0.0001389,2]
[330815489,1719835838262,-6950.4756,0.00013899,2]
[330815490,1719835838272,-7841.9619,0.00013899,2]
[330815491,1719835838282,-92091.9448,0.00013899,2]
[330815492,1719835838292,-22467.9357,0.00013899,2]
[330815493,1719835838302,-156.09166717,0.000139,2]
[330815494,1719835838312,-160.13713916,0.000139,2]
[330815522,1719835838623,-166.41736426,0.000139,2]
[330815523,1719835838634,-888.23367864,0.000139,2]
[330815524,1719835838644,-799.21299174,0.000139,2]
[330815525,1719835838654,-424.18,0.00013945,2]
[330815526,1719835838664,-1055.92,0.00013945,2]
[330815527,1719835838673,-150.0,0.00013945,2]
[330815528,1719835838682,-158.18,0.00013945,2]
[330815529,1719835838692,-239.96,0.00013945,2]
[330815530,1719835838702,-317.11,0.00013945,2]
[330815531,1719835838711,-421.48,0.00013945,2]
[330815532,1719835838721,-354.72,0.00013945,2]
[330815533,1719835838730,-150.63,0.00013945,2]
[330815534,1719835838740,-303.77,0.00013945,2]
[330815535,1719835838750,-424.18,0.00013945,2]
[330815536,1719835838760,-150.0,0.00013945,2]
[330815537,1719835838770,-354.72,0.00013945,2]
[330815538,1719835838780,-528.11,0.00013945,2]
[330815539,1719835838790,-329.5,0.00013945,2]
[330815540,1719835838799,-441.93,0.00013945,2]
[330815542,1719835838809,-424.18,0.00013945,2]
[330815544,1719835838819,-150.0,0.00013945,2]
[330815546,1719835838829,-354.72,0.00013945,2]
[330815548,1719835838839,-327.98,0.00013945,2]
[330815550,1719835838851,-66291.67117298,0.00013989,2]
[330815553,1719835838868,-408.66224937,0.00013989,2]
[330815555,1719835838880,-1994.87656404,0.00013989,2]
[330815558,1719835838903,-27284.94492335,0.00013989,2]
[330815560,1719835838919,-1101.66266684,0.00013989,2]
[330815561,1719835838935,-264.24,0.00013989,2]
[330815562,1719835840160,-414.80591757,0.00013989,2]
[330815563,1719835840173,-365.85916475,0.00013989,2]
[330815564,1719835840276,-364.18212,0.00013989,2]
[330815565,1719835840289,-542.84209629,0.00013989,2]
[330815566,1719835840301,-2853.89523188,0.00013989,2]
[330815567,1719835840314,-1103.50982722,0.00013989,2]
[330815568,1719835842288,-879.53341354,0.00013989,2]
[330815569,1719835842301,-38345.4209184,0.00013989,2]
[330815669,1719835843211,-59692.89361475,0.00013989,2]
[330815672,1719835843224,-5976.31321052,0.00013989,2]
[330815690,1719835843383,-1067.81353758,0.00013989,2]
[330815692,1719835843396,-455.24917089,0.00013989,2]
[330815694,1719835843408,-4433.464,0.00013989,2]
[330815700,1719835843450,-321661.6795096,0.00013989,2]
[330815702,1719835843460,-2700.4831802,0.00013989,2]
[330815704,1719835843469,-866.6754879,0.00013989,2]
[330815706,1719835843479,-178.8528741,0.00013989,2]
[330815708,1719835843488,-2224.2897247,0.0001399,2]
[330815710,1719835843498,-1748.0962693,0.0001399,2]
[330815712,1719835843508,-178.8528741,0.0001399,2]
[330815714,1719835843518,-961.0,0.00013999,2]
[330815716,1719835843527,-150.01,0.00013999,2]
[330815718,1719835843536,-5916.48029099,0.00013999,2]
[330815720,1719835843545,-85813.69063163,0.00013999,2]
[330815732,1719835846159,-523.98031464,0.00013999,2]
[330815733,1719835846172,-1795.36741921,0.00013999,2]
[330815734,1719835846219,-9845.39845549,0.00013999,2]
[330815735,1719835846231,-828.46681849,0.00013999,2]
[330815736,1719835846283,-7591.32295621,0.00013999,2]
[330815737,1719835846295,-5380.76369635,0.00013999,2]
[330815738,1719835846307,-31836.46279409,0.00013999,2]
[330815739,1719835846319,-404432.49608004,0.00013999,2]
[330815740,1719835846328,-182291.2347,0.00014,2]
[330815741,1719835846338,-26301.939707,0.00014,2]
[330815742,1719835846349,-18813.3,0.00014,2]
[330815743,1719835846374,-384.47,0.00014,2]
[330815744,1719835846386,-3219.5463672,0.00014,2]
[330815745,1719835846409,-360.08234564,0.00014,2]
[330815746,1719835846420,-6486.39503134,0.00014,2]
[330815747,1719835846431,-70607.51303373,0.00014,2]
[330815748,1719835846444,-723.96749468,0.00014,2]
[330815749,1719835846455,-4889.64758245,0.00014,2]
[330815750,1719835846468,-3567.11591837,0.00014,2]
[330815751,1719835846479,-21888.96346288,0.00014,2]
[330815753,1719835846490,-1604.0647606,0.00014,2]
[330815756,1719835847661,12280.04,0.00011201,2]
[330815758,1719835950019,150.5,0.0001399,30]
[330815759,1719835950475,218.1,0.0001398,30]
[330815760,1719835967001,15427.22902033,0.00011199,2]
[330815762,1719836071555,286.5,0.0001399,30]
[330815763,1719836073193,150.5,0.0001399,30]
[330815764,1719836073660,218.1,0.0001398,30]
[330815766,1719836143936,493.28,0.00010474,2]
[330815768,1719836196862,3022.28056517,0.00011199,2]
[330815769,1719836203834,3236.01137135,0.00011199,2]
[330815770,1719836231353,193.54674215,0.00011199,2]
[330815771,1719836235610,626.89619143,0.00011199,2]
[330815772,1719836262762,209.03096185,0.00011199,2]
[330815773,1719836322129,528.46230477,0.00011199,2]
[330815774,1719836423405,202.51697433,0.00011199,2]
[330815775,1719836431687,297.24474814,0.00011199,2]